bitfinex/quotes_BTCUSD_20250910
["timestamp","ask_amount","ask_price","bid_price","bid_amount"]
[1757508766513,0.31063028,113210.0,113200.0,0.51667844]
[1757508766514,0.0035363,113210.0,113200.0,0.51667844]
[1757508766706,0.0004,113240.0,113210.0,0.17665617]
[1757508766707,0.00294,113230.0,113210.0,0.17665617]
[1757508766978,0.29403708,113220.0,113200.0,0.77437437]
[1757508767168,0.29109709,113220.0,113210.0,0.15652]
[1757508767608,0.29109709,113220.0,113210.0,0.33318283]
[1757508767781,0.11738943,113220.0,113210.0,0.33318283]
[1757508767942,0.00492,113220.0,113210.0,0.33318283]
[1757508768151,0.11738943,113220.0,113210.0,0.33818283]
[1757508768364,0.00492,113220.0,113210.0,0.33318283]
[1757508768783,0.00492,113220.0,113210.0,0.37108283]
[1757508769001,0.00892,113220.0,113210.0,0.37408283]
[1757508769411,0.00598,113220.0,113210.0,0.37416283]
[1757508769665,0.004,113220.0,113210.0,0.48978226]
[1757508770108,0.007,113220.0,113210.0,0.48978226]
[1757508770436,0.007,113220.0,113210.0,0.4989127]
[1757508770635,0.007,113220.0,113210.0,0.8989127]
[1757508771429,0.007,113220.0,113210.0,1.33082869]
[1757508772471,0.004,113220.0,113210.0,1.35734288]
[1757508772674,0.004,113220.0,113210.0,1.44925887]
[1757508772850,0.006,113220.0,113210.0,1.44925887]
[1757508773110,0.006,113220.0,113210.0,1.35734288]
[1757508773501,0.002,113220.0,113210.0,1.35634288]
[1757508773903,0.005,113220.0,113210.0,1.35734288]
[1757508774534,0.005,113220.0,113210.0,1.41341215]
[1757508775970,0.005,113220.0,113210.0,1.41333215]
[1757508776402,0.005,113220.0,113210.0,1.40101171]
[1757508776607,0.3469974,113220.0,113210.0,0.33406283]
[1757508776804,0.1784587,113220.0,113210.0,0.33406283]
[1757508778013,0.35510593,113220.0,113210.0,0.33406283]
[1757508778403,0.14164156,113220.0,113210.0,0.17766283]
[1757508778614,0.04174757,113220.0,113210.0,0.001]
[1757508778803,0.35011636,113220.0,113210.0,0.001]
[1757508779430,0.35011636,113220.0,113210.0,0.17766283]
[1757508779630,0.2183948,113220.0,113210.0,0.17766283]
[1757508779843,0.35011636,113220.0,113210.0,0.17766283]
[1757508780042,0.31828879,113220.0,113210.0,0.001]
[1757508780245,0.18656723,113220.0,113210.0,0.17766283]
[1757508780534,0.31828879,113220.0,113210.0,0.17766283]
[1757508781425,0.18656723,113220.0,113210.0,0.17766283]
[1757508781587,0.31828879,113220.0,113210.0,0.17766283]
[1757508781837,0.005,113220.0,113210.0,0.79160521]
[1757508782044,0.005,113220.0,113210.0,0.78939693]
[1757508782468,0.005,113220.0,113210.0,0.88131292]
[1757508783238,0.005,113220.0,113210.0,1.28131292]
[1757508783713,0.005,113220.0,113210.0,0.81080038]
[1757508783935,0.005,113220.0,113210.0,0.96712038]
[1757508784159,0.005,113220.0,113210.0,1.36712038]
[1757508786213,0.005,113220.0,113210.0,1.23539882]
[1757508786399,0.005,113220.0,113210.0,1.36712038]
[1757508787216,0.005,113220.0,113210.0,1.39363298]
[1757508788674,0.005,113220.0,113210.0,1.48554897]
[1757508791817,0.005,113220.0,113210.0,1.39363298]
[1757508793735,0.005,113220.0,113210.0,1.23731298]
[1757508793963,0.005,113220.0,113210.0,1.39355298]
[1757508796829,0.005,113220.0,113210.0,1.25883142]
[1757508797075,0.31848879,113220.0,113210.0,0.06754]
[1757508797338,0.36800085,113220.0,113210.0,0.001]
[1757508798964,0.56756241,113220.0,113210.0,0.001]
[1757508799269,0.30411929,113220.0,113210.0,0.001]
[1757508799488,0.56756241,113220.0,113210.0,0.001]
[1757508799926,0.6594784,113220.0,113210.0,0.001]
[1757508800431,0.73334944,113220.0,113210.0,0.001]
[1757508800644,0.39603528,113220.0,113210.0,0.001]
[1757508800890,0.83999738,113220.0,113210.0,0.001]
[1757508803430,0.83999738,113220.0,113210.0,0.24420283]
[1757508803431,0.005,113220.0,113210.0,0.24420283]
[1757508803645,0.01012,113220.0,113210.0,0.24420283]
[1757508804220,0.16322,113220.0,113210.0,0.24420283]
[1757508804487,0.0071,113220.0,113210.0,0.24420283]
[1757508804629,0.16322,113220.0,113210.0,0.24420283]
[1757508804832,0.33187708,113220.0,113210.0,0.24420283]
[1757508805327,0.16322,113220.0,113210.0,0.24420283]
[1757508805532,0.005,113220.0,113210.0,0.24420283]
[1757508805753,0.005,113220.0,113210.0,0.41581991]
[1757508805956,0.005,113220.0,113210.0,0.5077359]
[1757508807286,0.005,113220.0,113210.0,0.33907882]
[1757508807500,0.005,113220.0,113210.0,0.5077359]
[1757508810082,0.005,113220.0,113210.0,0.53424946]
[1757508811038,0.005,113220.0,113210.0,0.53128946]
[1757508812695,0.005,113220.0,113210.0,0.5047759]
[1757508812903,0.00715,113220.0,113210.0,0.33611882]
[1757508813108,0.17580708,113220.0,113210.0,0.33611882]
[1757508813734,0.5752043,113220.0,113210.0,0.17766283]
[1757508814166,0.40654722,113220.0,113210.0,0.17766283]
[1757508814383,0.35540431,113220.0,113210.0,0.17766283]
[1757508814596,0.0101,113220.0,113210.0,0.17766283]
[1757508814807,0.17875708,113220.0,113210.0,0.17766283]
[1757508815021,0.35540431,113220.0,113210.0,0.17766283]
[1757508815599,0.0101,113220.0,113210.0,0.18196111]
[1757508815813,0.161,113220.0,113210.0,0.40648819]
[1757508816006,0.161,113220.0,113210.0,0.40427991]
[1757508816219,0.161,113220.0,113210.0,0.23562283]
[1757508816469,0.161,113220.0,113210.0,0.23264283]
[1757508816677,0.161,113220.0,113210.0,0.23562283]
[1757508816859,0.161,113220.0,113210.0,0.40427991]
[1757508817074,0.005,113220.0,113210.0,0.40427991]
[1757508817287,0.16096,113220.0,113210.0,0.40427991]
[1757508818625,0.005,113220.0,113210.0,0.40427991]
[1757508818790,0.16092,113220.0,113210.0,0.40427991]
[1757508819249,0.16092,113220.0,113210.0,0.23562283]
[1757508819417,0.16092,113220.0,113210.0,0.40427991]
[1757508820362,0.16092,113220.0,113210.0,0.23264283]
[1757508820579,0.005,113220.0,113210.0,1.62506918]
[1757508820789,0.005,113220.0,113210.0,1.4564121]
[1757508821218,0.00266937,113220.0,113210.0,1.4564121]
[1757508821434,0.00266937,113220.0,113210.0,1.48291981]
[1757508822025,0.0008691,113240.0,113230.0,0.17663163]
[1757508822167,0.0008691,113240.0,113230.0,0.5930847]
[1757508822376,0.0008691,113240.0,113230.0,0.6510447]
[1757508823485,0.0088691,113240.0,113230.0,0.6520447]
[1757508823932,0.0088691,113240.0,113230.0,1.0520447]
[1757508826578,0.0088691,113240.0,113230.0,1.06094174]
[1757508828251,1e-08,113240.0,113230.0,2.37581101]
[1757508828490,1e-08,113240.0,113230.0,1.64344723]
[1757508828718,1e-08,113240.0,113230.0,2.16306395]
[1757508829636,0.17200708,113270.0,113260.0,0.17658484]
[1757508829856,0.35119048,113270.0,113260.0,0.17658484]
[1757508830085,0.35119048,113270.0,113250.0,0.22947647]
[1757508830350,0.17160708,113260.0,113250.0,0.66139246]
[1757508830587,0.35034192,113260.0,113250.0,0.17660044]
[1757508832169,0.50610192,113260.0,113250.0,0.17660044]
[1757508832385,0.57505545,113260.0,113250.0,0.17660044]
[1757508832628,0.74371253,113260.0,113240.0,0.18541981]
[1757508832837,0.57505545,113260.0,113240.0,0.2773358]
[1757508833059,0.34820752,113250.0,113240.0,0.3302258]
[1757508833258,0.35035752,113250.0,113240.0,0.3302258]
[1757508833503,0.0051,113250.0,113240.0,0.3302258]
[1757508834196,0.18170044,113250.0,113240.0,0.23830981]
[1757508834454,0.0051,113250.0,113240.0,0.23830981]
[1757508834691,0.0051,113250.0,113240.0,0.24030981]
[1757508834901,0.18170044,113250.0,113240.0,0.24030981]
[1757508835344,0.0051,113250.0,113240.0,0.24030981]
[1757508835842,0.0051,113250.0,113240.0,0.24239981]
[1757508836058,0.18170044,113250.0,113240.0,0.24239981]
[1757508836282,0.33525484,113260.0,113250.0,0.17660044]
[1757508836514,0.33740484,113260.0,113250.0,0.17660044]
[1757508836767,0.33736484,113260.0,113250.0,0.17660044]
[1757508837861,0.3880564,113260.0,113240.0,0.23830981]
[1757508838070,0.3880564,113260.0,113240.0,0.35164584]
[1757508838279,0.50039243,113260.0,113250.0,0.17660044]
[1757508838730,0.44970087,113260.0,113250.0,0.17660044]
[1757508840043,0.33736484,113260.0,113250.0,0.17660044]
[1757508840248,0.44970087,113260.0,113250.0,0.17660044]
[1757508840646,0.33836484,113260.0,113250.0,0.17660044]
[1757508840849,0.45066087,113260.0,113250.0,0.17660044]
[1757508841545,0.16174,113260.0,113250.0,0.17660044]
[1757508841756,0.33832484,113260.0,113250.0,0.17873044]
[1757508842391,0.33832484,113260.0,113250.0,0.17660044]
[1757508842783,0.45066087,113260.0,113250.0,0.17660044]
[1757508842989,0.33832484,113260.0,113240.0,0.23830981]
[1757508843242,0.45066087,113260.0,113250.0,0.17660044]
[1757508844040,0.44966087,113260.0,113250.0,0.17660044]
[1757508844278,0.44962087,113260.0,113250.0,0.17660044]
[1757508844496,0.33728484,113260.0,113250.0,0.17660044]
[1757508844694,0.0051,113260.0,113250.0,0.17660044]
[1757508844893,0.33828484,113260.0,113250.0,0.17660044]
[1757508845957,0.18268484,113260.0,113250.0,0.17873044]
[1757508846157,0.33828484,113260.0,113250.0,0.17873044]
[1757508846373,0.33828484,113260.0,113250.0,0.17660044]
[1757508846581,0.45062087,113260.0,113250.0,0.17660044]
[1757508846799,0.45062087,113260.0,113240.0,0.23275981]
[1757508847001,0.52109314,113260.0,113240.0,0.34509584]
[1757508847416,0.52109314,113260.0,113250.0,0.17660044]
[1757508847624,0.45062087,113260.0,113250.0,0.17660044]
[1757508847841,0.44962087,113260.0,113250.0,0.17660044]
[1757508848670,0.45062087,113260.0,113250.0,0.17660044]
[1757508849105,0.45062087,113260.0,113240.0,0.23275981]
[1757508849331,0.0031,113250.0,113240.0,0.34509584]
[1757508849543,0.44862087,113260.0,113240.0,0.34722584]
[1757508849760,0.0021,113250.0,113240.0,0.23488981]
[1757508851081,0.51779814,113260.0,113240.0,0.23488981]
[1757508851279,0.40546211,113260.0,113240.0,0.23488981]
[1757508851502,0.0021,113250.0,113240.0,0.23588981]
[1757508851715,0.0052,113250.0,113240.0,0.23588981]
[1757508852390,0.0021,113250.0,113240.0,0.23588981]
[1757508852602,0.0021,113250.0,113240.0,0.23488981]
[1757508852810,0.0021,113250.0,113240.0,0.23588981]
[1757508853840,0.29202087,113260.0,113250.0,0.17660044]
[1757508854043,0.44964087,113260.0,113250.0,0.17660044]
[1757508854453,0.44960087,113260.0,113250.0,0.17660044]
[1757508854886,0.0052,113260.0,113250.0,0.22607044]
[1757508855100,0.0062,113260.0,113250.0,0.22607044]
[1757508855315,0.15858,113260.0,113250.0,0.22607044]
[1757508855759,0.001,113260.0,113250.0,0.33840647]
[1757508855965,0.001,113260.0,113250.0,0.34141647]
[1757508856167,0.15648,113260.0,113250.0,0.34141647]
[1757508856367,0.001,113260.0,113250.0,0.22908044]
[1757508856727,0.001,113260.0,113250.0,0.34141647]
[1757508856967,0.18278484,113260.0,113250.0,0.22394044]
[1757508857212,0.25237247,113260.0,113250.0,0.17660044]
[1757508857471,0.25237247,113260.0,113240.0,0.58541981]
[1757508857719,0.25237247,113260.0,113250.0,0.17660044]
[1757508857968,0.24927247,113260.0,113250.0,0.17660044]
[1757508858148,0.25237247,113260.0,113250.0,0.17660044]
[1757508858430,0.3637085,113260.0,113250.0,0.17660044]
[1757508859535,0.25137247,113260.0,113250.0,0.17660044]
[1757508859751,0.18178484,113260.0,113250.0,0.17660044]
[1757508861048,0.18278484,113260.0,113250.0,0.17660044]
[1757508861700,0.15644,113260.0,113250.0,0.22607044]
[1757508862154,0.15854,113260.0,113250.0,0.22607044]
[1757508862378,0.16164,113260.0,113250.0,0.22607044]
[1757508862697,0.001,113260.0,113250.0,0.22607044]
[1757508862835,0.1564,113260.0,113250.0,0.33840647]
[1757508863056,0.1564,113260.0,113250.0,0.22607044]
[1757508863263,0.1564,113260.0,113250.0,0.34141647]
[1757508863666,0.001,113260.0,113250.0,0.34141647]
[1757508863897,0.001,113260.0,113250.0,0.22908044]
[1757508864073,0.001,113260.0,113250.0,0.49681647]
[1757508867981,0.001,113260.0,113250.0,0.58873246]
[1757508868626,0.001,113260.0,113250.0,0.47639643]
[1757508868833,0.001,113260.0,113250.0,0.58873246]
[1757508870617,0.001,113260.0,113250.0,0.43333246]
[1757508870840,0.001,113260.0,113250.0,0.58861246]
[1757508871059,0.001,113260.0,113250.0,0.43333246]
[1757508871279,0.001,113260.0,113250.0,0.58861246]
[1757508871908,0.001,113260.0,113250.0,0.43333246]
[1757508872149,0.001,113260.0,113250.0,0.58861246]
[1757508874214,0.001,113260.0,113250.0,0.43333246]
[1757508874428,0.001,113260.0,113250.0,0.58857246]
[1757508878601,0.001,113260.0,113250.0,0.31798643]
[1757508878819,0.001,113260.0,113250.0,0.58848246]
[1757508879576,0.001,113260.0,113250.0,0.43328246]
[1757508879819,0.29498087,113260.0,113250.0,0.17660044]
[1757508880037,0.60971855,113260.0,113240.0,0.18541981]
[1757508880222,0.38205649,113260.0,113250.0,0.17660044]
[1757508880479,0.60672855,113260.0,113240.0,0.18541981]
[1757508880700,0.11233603,113250.0,113240.0,0.18541981]
[1757508880905,0.11739603,113250.0,113240.0,0.18541981]
[1757508881122,0.17836789,113250.0,113240.0,0.18541981]
[1757508881559,0.35496833,113250.0,113240.0,0.18541981]
[1757508881991,0.35496833,113250.0,113240.0,0.17661603]
[1757508882440,0.35496833,113250.0,113240.0,0.17761603]
[1757508883066,0.2426323,113250.0,113240.0,0.17761603]
[1757508883222,0.35496833,113250.0,113240.0,0.17761603]
[1757508884259,0.35496833,113250.0,113240.0,0.001]
[1757508884540,0.35796833,113250.0,113240.0,0.001]
[1757508884967,0.2456323,113250.0,113240.0,0.001]
[1757508885200,0.17661603,113240.0,113230.0,0.24714417]
[1757508885437,0.35290833,113250.0,113240.0,0.17661603]
[1757508885649,0.00506,113240.0,113230.0,0.24714417]
[1757508885861,0.29401206,113240.0,113230.0,0.24714417]
[1757508885975,0.18167603,113240.0,113230.0,0.24714417]
[1757508886198,0.35174889,113240.0,113230.0,0.24714417]
[1757508886613,0.17513286,113240.0,113230.0,0.24714417]
[1757508886813,0.06279683,113240.0,113230.0,0.24714417]
[1757508887020,0.21791683,113240.0,113230.0,0.24714417]
[1757508887656,0.06379683,113240.0,113230.0,0.24714417]
[1757508887865,0.21887683,113240.0,113230.0,0.24714417]
[1757508889485,0.21887683,113240.0,113230.0,0.17663163]
[1757508890230,0.50782889,113240.0,113230.0,0.17663163]
[1757508891108,0.21887683,113240.0,113230.0,0.17663163]
[1757508891307,0.06379683,113240.0,113230.0,0.17663163]
[1757508891529,0.21883683,113240.0,113230.0,0.17663163]
[1757508892670,0.39545286,113240.0,113230.0,0.17663163]
[1757508892878,0.50778889,113240.0,113230.0,0.17663163]
[1757508894551,0.56400469,113240.0,113230.0,0.17663163]
[1757508894790,0.73255652,113240.0,113220.0,0.52546546]
[1757508895013,0.34817346,113230.0,113220.0,0.18546546]
[1757508895222,0.44008945,113230.0,113220.0,0.18546546]
[1757508895433,0.44215945,113230.0,113220.0,0.18546546]
[1757508895647,0.44215945,113230.0,113220.0,0.17664723]
[1757508895860,0.09697599,113230.0,113220.0,0.17664723]
[1757508896119,0.59715945,113230.0,113220.0,0.17764723]
[1757508896331,0.59715945,113230.0,113220.0,0.1777859]
[1757508896332,0.42860762,113230.0,113220.0,0.1777859]
[1757508896554,0.42052782,113230.0,113220.0,0.1767859]
[1757508896995,0.09697599,113230.0,113220.0,0.1777859]
[1757508897210,0.16006,113230.0,113220.0,0.1777859]
[1757508897437,0.00506,113230.0,113220.0,0.1767859]
[1757508897655,0.30219318,113240.0,113230.0,0.17663163]
[1757508897873,0.28053683,113240.0,113230.0,0.17663163]
[1757508898088,0.06991,113240.0,113230.0,0.17663163]
[1757508898268,0.39641183,113240.0,113230.0,0.17663163]
[1757508898713,0.22786,113240.0,113230.0,0.17663163]
[1757508898929,0.57302786,113240.0,113230.0,0.17663163]
[1757508899165,0.39941183,113240.0,113230.0,0.17663163]
[1757508899374,0.42550676,113240.0,113230.0,0.17663163]
[1757508899579,0.42650676,113240.0,113230.0,0.17663163]
[1757508900028,0.25795493,113240.0,113230.0,0.17663163]
[1757508900239,0.42650676,113240.0,113230.0,0.17663163]
[1757508900706,0.00906,113240.0,113230.0,0.34518346]
[1757508900930,0.004,113240.0,113230.0,0.38176346]
[1757508901150,0.004,113240.0,113230.0,0.37176346]
[1757508901364,0.15892,113240.0,113230.0,0.37176346]
[1757508901786,0.16098,113240.0,113230.0,0.37176346]
[1757508901998,0.38188702,113240.0,113230.0,0.37176346]
[1757508902214,0.20527099,113240.0,113230.0,0.37176346]
[1757508902444,0.20003099,113240.0,113230.0,0.20321163]
[1757508902662,0.15892,113240.0,113230.0,0.37176346]
[1757508903009,0.004,113240.0,113230.0,0.37176346]
[1757508903234,0.004,113240.0,113230.0,0.71483346]
[1757508904103,0.003,113240.0,113230.0,0.71483346]
[1757508904756,0.22272,113260.0,113250.0,0.17660044]
[1757508904965,0.34870108,113270.0,113260.0,0.17658484]
[1757508905177,0.42873627,113270.0,113260.0,0.17658484]
[1757508905385,0.33708925,113270.0,113260.0,0.21113484]
[1757508905602,0.00564,113270.0,113260.0,0.21113484]
[1757508905804,0.15528,113270.0,113260.0,0.38171667]
[1757508906214,0.16174415,113270.0,113260.0,0.38271667]
[1757508906428,0.15774415,113270.0,113260.0,0.38171667]
[1757508906636,0.15574415,113270.0,113260.0,0.38171667]
[1757508906859,0.15574415,113270.0,113260.0,0.21316484]
[1757508907067,0.15674415,113270.0,113260.0,0.38478667]
[1757508907270,0.15674415,113270.0,113260.0,0.38171667]
[1757508907271,0.18877056,113270.0,113260.0,0.38171667]
[1757508907484,0.00186415,113270.0,113260.0,0.71722152]
[1757508907684,0.00186415,113270.0,113260.0,0.80913751]
[1757508907898,0.00186415,113270.0,113260.0,0.64058568]
[1757508908395,0.00486415,113270.0,113260.0,0.80913751]
[1757508908819,0.00186415,113270.0,113260.0,0.80913751]
[1757508909267,0.00186415,113270.0,113260.0,0.80909751]
[1757508909884,0.00086415,113270.0,113260.0,0.80909751]
[1757508910323,0.00086415,113270.0,113260.0,0.31719385]
[1757508910538,0.00086415,113270.0,113260.0,0.30508083]
[1757508910753,0.00086415,113270.0,113260.0,0.62843266]
[1757508910962,0.00086415,113270.0,113260.0,0.63150266]
[1757508911870,0.00086415,113270.0,113260.0,0.46295083]
[1757508912059,0.00086415,113270.0,113260.0,0.63150266]
[1757508913181,0.00086415,113270.0,113260.0,0.63246266]
[1757508913403,0.00086415,113270.0,113260.0,0.47770266]
[1757508913650,0.00086415,113270.0,113260.0,0.63242266]
[1757508915472,0.00086415,113270.0,113260.0,1.23289048]
[1757508915694,0.00086415,113270.0,113260.0,0.98625449]
[1757508915899,0.00086415,113270.0,113260.0,1.14097449]
[1757508916537,0.00086415,113270.0,113260.0,0.98625449]
[1757508916955,0.00086415,113270.0,113260.0,0.97238266]
[1757508917601,0.00086415,113270.0,113260.0,1.37238266]
[1757508917859,0.00086415,113270.0,113260.0,1.20383083]
[1757508918078,0.00086415,113270.0,113260.0,1.54093449]
[1757508921576,0.00086415,113270.0,113260.0,1.38625449]
[1757508921796,0.00086415,113270.0,113260.0,1.54085449]
[1757508922877,0.01058684,113270.0,113260.0,1.54085449]
[1757508924359,0.01058684,113270.0,113260.0,1.20375083]
[1757508924585,0.01058684,113270.0,113260.0,1.54085449]
[1757508925433,0.01058684,113270.0,113260.0,1.20375083]
[1757508925674,0.01058684,113270.0,113260.0,1.54085449]
[1757508927643,0.01058684,113270.0,113260.0,1.20375083]
[1757508927858,0.01058684,113270.0,113260.0,1.54085449]
[1757508929395,0.01058684,113270.0,113260.0,1.80132231]
[1757508929634,0.01058684,113270.0,113260.0,1.82644889]
[1757508930303,0.01058684,113270.0,113260.0,1.84512824]
[1757508930757,0.01058684,113270.0,113260.0,1.84412824]
[1757508931266,0.01058684,113270.0,113260.0,1.89412824]
[1757508931513,0.01460102,113280.0,113270.0,0.20169583]
[1757508931749,0.01464741,113280.0,113270.0,0.83479523]
[1757508932018,0.01464741,113280.0,113270.0,0.83681523]
[1757508932267,0.01464741,113280.0,113270.0,1.23681523]
[1757508933363,0.01464741,113280.0,113270.0,1.23881523]
[1757508933572,0.01464741,113280.0,113270.0,1.23981523]
[1757508934734,0.01464741,113280.0,113270.0,1.25849458]
[1757508936842,0.01464741,113280.0,113270.0,1.59849458]
[1757508937071,0.01464741,113280.0,113270.0,1.79849458]
[1757508938427,0.01464741,113280.0,113270.0,1.79649458]
[1757508938645,0.01464741,113280.0,113270.0,1.79949458]
[1757508938872,0.01464741,113280.0,113270.0,1.79649458]
[1757508939087,0.01464741,113280.0,113270.0,1.79849458]
[1757508939297,0.01464741,113280.0,113270.0,1.80049458]
[1757508939902,0.01464741,113280.0,113270.0,1.79849458]
[1757508940734,0.01464741,113280.0,113270.0,1.80049458]
[1757508942363,0.01464741,113280.0,113270.0,2.21904641]
[1757508943623,0.01464741,113280.0,113270.0,1.65003117]
[1757508943844,0.01464741,113280.0,113270.0,1.818583]
[1757508944458,0.01464741,113280.0,113270.0,1.98713483]
[1757508946066,0.01464741,113280.0,113270.0,1.98709483]
[1757508946911,0.00805739,113280.0,113270.0,2.06560412]
[1757508947539,0.00805739,113280.0,113270.0,2.15752011]
[1757508948234,0.00805739,113280.0,113270.0,2.00332011]
[1757508948879,0.00805739,113280.0,113270.0,2.15752011]
[1757508951930,0.00805739,113280.0,113270.0,0.80917388]
[1757508952133,0.00805739,113280.0,113270.0,1.05333642]
[1757508952776,0.00805739,113280.0,113270.0,1.39333642]
[1757508952979,0.00805739,113280.0,113270.0,0.99333642]
[1757508953191,0.01010739,113280.0,113270.0,0.32742459]
[1757508953394,0.0474951,113280.0,113270.0,0.63141707]
[1757508953670,0.3957706,113280.0,113270.0,0.28629599]
[1757508954097,0.21921693,113280.0,113270.0,0.46086524]
[1757508954283,0.0474951,113280.0,113270.0,0.63141707]
[1757508954439,0.18666106,113280.0,113270.0,0.45484782]
[1757508954661,0.18666106,113280.0,113270.0,0.45184782]
[1757508954862,0.18983106,113280.0,113270.0,0.12917599]
[1757508955059,0.18983106,113280.0,113270.0,0.44982782]
[1757508955263,0.18983106,113280.0,113270.0,0.45182782]
[1757508955509,0.18983106,113280.0,113270.0,0.44982782]
[1757508955730,0.18983106,113280.0,113270.0,0.44782782]
[1757508955944,0.19083106,113280.0,113270.0,0.44782782]
[1757508956175,0.41474297,113280.0,113270.0,0.27927599]
[1757508956397,0.17656925,113270.0,113260.0,0.34]
[1757508956620,0.29409008,113270.0,113260.0,0.34]
[1757508956833,0.29409008,113270.0,113260.0,0.15408]
[1757508957261,0.29409008,113270.0,113250.0,0.79151253]
[1757508957537,0.24187222,113270.0,113250.0,0.88342852]
[1757508957979,0.24187222,113270.0,113260.0,0.03324]
[1757508958201,0.23870222,113270.0,113260.0,0.03424]
[1757508958342,0.23870222,113270.0,113260.0,0.03324]
[1757508958547,0.24187222,113270.0,113260.0,0.03424]
[1757508958769,0.18178925,113270.0,113260.0,0.03424]
[1757508959393,0.18278925,113270.0,113260.0,0.03424]
[1757508959911,0.00305,113270.0,113260.0,0.32744298]
[1757508960114,0.001,113270.0,113260.0,0.41615166]
[1757508960713,0.001,113270.0,113260.0,0.23956682]
[1757508961037,0.001,113270.0,113260.0,0.41615166]
[1757508961459,0.00298,113270.0,113260.0,0.41615166]
[1757508961627,0.18274925,113270.0,113260.0,0.12726599]
[1757508961829,0.18274925,113270.0,113260.0,0.27919599]
[1757508962014,0.18274925,113270.0,113260.0,0.45578083]
[1757508962398,0.18274925,113270.0,113260.0,0.27919599]
[1757508963051,0.18274925,113270.0,113260.0,0.45578083]
[1757508964238,0.18274925,113270.0,113260.0,0.27919599]
[1757508964460,0.18274925,113270.0,113260.0,0.45578083]
[1757508965405,0.18274925,113270.0,113260.0,0.56808166]
[1757508965631,0.18274925,113270.0,113260.0,0.18728]
[1757508965632,0.24611537,113270.0,113260.0,0.18728]
[1757508966289,0.18274925,113270.0,113260.0,0.18728]
[1757508968450,0.18274925,113270.0,113260.0,0.03324]
[1757508972041,0.18274925,113270.0,113260.0,0.20982484]
[1757508972254,0.00618,113270.0,113260.0,0.32423567]
[1757508972429,0.001,113270.0,113260.0,0.32423567]
[1757508974882,0.001,113270.0,113260.0,0.53159249]
[1757508975097,0.001,113270.0,113260.0,0.41929166]
[1757508975291,0.18274925,113270.0,113260.0,0.03324]
[1757508975503,0.17658484,113260.0,113250.0,0.74908365]
[1757508975704,0.17856484,113260.0,113250.0,0.44099964]
[1757508975918,0.18176484,113260.0,113250.0,0.91197091]
[1757508976135,0.18176484,113260.0,113250.0,0.79967008]
[1757508976337,0.18176484,113260.0,113250.0,0.46918964]
[1757508976560,0.18176484,113260.0,113250.0,0.73537047]
[1757508976951,0.18176484,113260.0,113250.0,0.79967008]
[1757508977213,0.22281066,113260.0,113250.0,0.37827365]
[1757508977426,0.33511149,113260.0,113250.0,0.0021]
[1757508977645,0.48895149,113260.0,113250.0,0.0021]
[1757508978271,0.37665066,113260.0,113250.0,0.0011]
[1757508978868,0.37665066,113260.0,113250.0,0.0001]
[1757508979641,0.48895149,113260.0,113250.0,0.0001]
[1757508979855,0.01125739,113280.0,113250.0,0.76057019]
[1757508980086,0.01125739,113280.0,113270.0,0.28887008]
[1757508980503,0.01323739,113280.0,113270.0,0.14049083]
[1757508980704,0.18979106,113280.0,113270.0,0.02819]
[1757508980908,0.18979106,113280.0,113270.0,0.20475925]
[1757508981108,0.07835239,113280.0,113270.0,0.20475925]
[1757508981544,0.25490606,113280.0,113270.0,0.20475925]
[1757508982152,0.16383739,113280.0,113270.0,0.31917008]
[1757508982364,0.16803739,113280.0,113270.0,0.31917008]
[1757508982854,0.16703739,113280.0,113270.0,0.31917008]
[1757508983247,0.01005739,113280.0,113270.0,0.65917008]
[1757508983450,0.01005739,113280.0,113270.0,0.75422607]
[1757508984904,0.03029106,113280.0,113270.0,0.63878524]
[1757508985112,0.03349106,113280.0,113270.0,0.69855925]
[1757508985317,0.03349106,113280.0,113270.0,0.54475925]
[1757508985526,0.03149106,113280.0,113270.0,0.54475925]
[1757508985734,0.01323739,113280.0,113270.0,0.54475925]
[1757508985939,0.01423739,113280.0,113270.0,0.54475925]
[1757508986785,0.01423739,113280.0,113270.0,0.54686925]
[1757508988814,0.01423739,113280.0,113270.0,0.54475925]
[1757508989286,0.01103739,113280.0,113270.0,0.65913008]
[1757508989502,0.01115739,113280.0,113270.0,0.65913008]
[1757508989738,0.01416739,113280.0,113270.0,0.54475925]
[1757508990382,0.23826163,113280.0,113270.0,0.02819]
[1757508990623,0.17656925,113270.0,113260.0,0.34]
[1757508990839,0.29398008,113270.0,113260.0,0.51658484]
[1757508991290,0.18167925,113270.0,113260.0,0.51658484]
[1757508991515,0.00511,113270.0,113260.0,0.54449484]
[1757508992156,0.00511,113270.0,113260.0,0.54549484]
[1757508992390,0.00511,113270.0,113260.0,0.65986567]
[1757508992791,0.18167925,113270.0,113260.0,0.37198]
[1757508993027,0.18167925,113270.0,113260.0,0.54649484]
[1757508993403,0.00511,113270.0,113260.0,0.66086567]
[1757508993619,0.44766008,113270.0,113260.0,0.002]
[1757508993952,0.44766008,113270.0,113260.0,0.001]
[1757508994262,0.44866008,113270.0,113260.0,0.001]
[1757508994474,0.44866008,113270.0,113250.0,0.51669947]
[1757508994716,0.00301,113260.0,113250.0,0.54460947]
[1757508994916,0.00301,113260.0,113250.0,0.6569103]
[1757508995127,0.41140327,113270.0,113250.0,0.6589803]
[1757508995402,0.33421925,113270.0,113260.0,0.02791]
[1757508995676,0.33531925,113270.0,113260.0,0.02791]
[1757508995868,0.15564,113270.0,113260.0,0.52308249]
[1757508996079,0.15364,113270.0,113260.0,0.41078166]
[1757508996528,0.17658484,113260.0,113250.0,0.0001]
[1757508996729,0.43420898,113260.0,113250.0,0.0001]
[1757508996925,0.48065815,113260.0,113250.0,0.0001]
[1757508997523,0.18169484,113260.0,113250.0,0.0001]
[1757508997749,0.18169484,113260.0,113250.0,0.14238083]
[1757508997955,0.33533484,113260.0,113250.0,0.03008]
[1757508998164,0.33533484,113260.0,113250.0,0.02801]
[1757508998543,0.33633484,113260.0,113250.0,0.02801]
[1757508998763,0.35874079,113260.0,113250.0,0.02801]
[1757508998965,0.67425844,113260.0,113250.0,0.0001]
[1757508999407,0.45365678,113260.0,113250.0,0.0001]
[1757508999603,0.67825844,113260.0,113250.0,0.0001]
[1757509000579,0.68113151,113260.0,113250.0,0.0001]
[1757509004470,1.02113151,113260.0,113250.0,0.0001]
[1757509005859,1.02113151,113260.0,113250.0,1e-08]
[1757509006281,1.147651,113260.0,113250.0,1e-08]
[1757509006508,1.147751,113260.0,113250.0,1e-08]
[1757509007147,1.142751,113260.0,113250.0,1e-08]
[1757509007534,0.94040285,113260.0,113250.0,1e-08]
[1757509007703,0.17664723,113220.0,113210.0,0.07051254]
[1757509007907,0.52780516,113220.0,113210.0,0.07051254]